fUST/lending_fUST_20251020
["ID","MTS","AMOUNT","RATE_DAILY","PERIOD"]
[391824894,1760889637307,187.02,0.00022515,2]
[391824902,1760889718476,184.64,0.00022514,2]
[391824999,1760889799550,182.29,0.0002251,2]
[391825001,1760889845421,168.9169539,0.00014881,2]
[391825007,1760889879027,179.97,0.00022518,2]
[391825008,1760889959565,177.68,0.00021497,2]
[391825009,1760889959995,355.36,0.0002252,2]
[391825010,1760889960411,533.05,0.00023544,2]
[391825043,1760890038718,164.11,0.00021553,2]
[391825044,1760890039148,328.23,0.00022579,2]
[391825045,1760890039591,492.34,0.00023606,2]
[391825049,1760890117474,153.49,0.00021553,2]
[391825050,1760890117900,306.98,0.00022579,2]
[391825051,1760890118324,460.47,0.00023606,2]
[391825052,1760890196895,396.58,0.00021552,2]
[391825053,1760890197326,793.16,0.00022579,2]
[391825054,1760890197749,1189.74,0.00023605,2]
[391825087,1760890232692,-300.0,0.0002417,2]
[391825089,1760890232702,-300.0,0.0002417,2]
[391825091,1760890232711,-300.0,0.0002417,2]
[391825093,1760890232720,-1200.0,0.0002417,2]
[391825095,1760890232730,-300.0,0.0002417,2]
[391825097,1760890232739,-200.0,0.00024172,2]
[391825100,1760890232749,-500.0,0.00024172,2]
[391825102,1760890232758,-500.0,0.00024172,2]
[391825104,1760890232768,-88.83596808,0.00024172,2]
[391825106,1760890232780,-411.16403192,0.00024172,2]
[391825109,1760890232789,-500.0,0.00024172,2]
[391825111,1760890232798,-205.42048768,0.00024172,2]
[391825113,1760890232808,-218.58606041,0.00024172,2]
[391825115,1760890232817,-1573.76355295,0.00024631,2]
[391825117,1760890232828,-12.55644705,0.00024631,2]
[391825119,1760890232837,-750.0,0.00025,2]
[391825121,1760890232846,-70.88750353,0.00025658,2]
[391825123,1760890232856,-553.67525093,0.00025658,2]
[391825285,1760890238508,-998.86,0.00025658,2]
[391825290,1760890240765,-359.47724554,0.00025658,2]
[391825291,1760890240774,-281.07815,0.00026676,2]
[391825292,1760890240783,-2379.48,0.00026684,2]
[391825293,1760890240794,-2776.06,0.0002771,2]
[391825294,1760890240804,-500.0,0.00027786,7]
[391825295,1760890240813,-355.2005273,0.00027811,2]
[391825296,1760890240826,-742.62561274,0.00027811,2]
[391825297,1760890240835,-500.0,0.00028245,7]
[391825298,1760890240845,-225.02754305,0.00028431,2]
[391825299,1760890240854,-2517.4874044,0.00028737,2]
[391825314,1760890243588,-655.1525956,0.00028737,2]
[391825315,1760890243597,-344.8474044,0.00029146,7]
[391825316,1760890243749,-158.14227839,0.00029146,7]
[391825317,1760890243759,-322.36312694,0.00029762,2]
[391825319,1760890260693,-4857.96747744,0.00029762,2]
[391825320,1760890260703,-262.28698076,0.00029762,2]
[391825321,1760890260712,-630.0,0.00029762,2]
[391825322,1760890260722,-164.903444,0.00029762,2]
[391825323,1760890260732,-263.03162081,0.00029762,2]
[391825324,1760890260742,-645.56413052,0.00029762,2]
[391825325,1760890260753,-500.0,0.00029762,2]
[391825326,1760890260763,-553.04535772,0.00029762,2]
[391825327,1760890260772,-515.48378157,0.00029762,2]
[391825328,1760890260782,-3569.22,0.00029763,2]
[391825329,1760890260792,-1292.702236,0.00030137,120]
[391825330,1760890260802,-500.0,0.00030176,7]
[391825331,1760890260812,-176.192471,0.00030759,2]
[391825332,1760890260822,-560.56908521,0.00030775,7]
[391825333,1760890260832,-3965.8,0.00030789,2]
[391825334,1760890260842,-257.17433492,0.00031712,2]
[391825335,1760890260852,-1026.42385188,0.00032201,2]
[391825336,1760890260862,-160.0,0.00032225,2]
[391825337,1760890260873,-400.0,0.00032773,2]
[391825338,1760890260883,-200.0,0.00032822,120]
[391825339,1760890260892,-281.07815,0.00033165,2]
[391825340,1760890260902,-200.0,0.00033276,120]
[391825341,1760890260911,-401.43306341,0.00033353,2]
[391825342,1760890260921,-297.15867159,0.00033428,2]
[391825343,1760890260930,-200.0,0.00033528,120]
[391825344,1760890260941,-502.0,0.000339,120]
[391825345,1760890260951,-600.0,0.00034056,30]
[391825346,1760890260961,-500.0,0.000342,2]
[391825347,1760890260971,-500.0,0.000342,2]
[391825348,1760890260980,-211.46,0.000342,30]
[391825349,1760890260989,-500.0,0.0003482,7]
[391825350,1760890261000,-904.58445861,0.00034897,2]
[391825351,1760890261011,-500.0,0.00034998,2]
[391825352,1760890261022,-4795.71383847,0.00035,7]
[391825353,1760890261031,-168.0,0.0003502,7]
[391825354,1760890261041,-168.0,0.00035094,120]
[391825355,1760890261052,-374.0,0.00035158,2]
[391825356,1760890261063,-1292.702236,0.0003516,120]
[391825357,1760890261072,-200.0,0.00035215,120]
[391825358,1760890261081,-374.0,0.00035225,120]
[391825359,1760890261091,-200.0,0.00035243,120]
[391825360,1760890261100,-374.0,0.00035269,2]
[391825361,1760890261110,-375.0,0.00035446,2]
[391825362,1760890261119,-190.8932987,0.00035699,30]
[391825363,1760890261129,-168.0,0.00035771,2]
[391825364,1760890261139,-200.0,0.00035896,120]
[391825365,1760890261148,-190.0811961,0.00035978,30]
[391825366,1760890261158,-151.0,0.00036172,2]
[391825367,1760890261167,-151.0,0.00036172,2]
[391825368,1760890261176,-151.0,0.00036172,2]
[391825369,1760890261186,-151.0,0.00036172,2]
[391825370,1760890261196,-500.0,0.00036172,2]
[391825371,1760890261205,-210.37207137,0.00036227,2]
[391825372,1760890261215,-151.0,0.00036227,2]
[391825373,1760890261224,-151.0,0.00036227,2]
[391825374,1760890261234,-500.0,0.00036227,2]
[391825375,1760890261243,-500.0,0.00036263,3]
[391825376,1760890261253,-151.0,0.00036282,2]
[391825377,1760890261263,-151.0,0.00036282,2]
[391825378,1760890261276,-157.653478,0.00036282,2]
[391825379,1760890261285,-1356.561751,0.00036301,2]
[391825380,1760890261295,-151.0,0.00036336,2]
[391825381,1760890261304,-151.0,0.00036336,2]
[391825382,1760890261313,-374.0,0.00036355,7]
[391825383,1760890261323,-245.0,0.00036391,2]
[391825384,1760890261332,-245.0,0.00036391,2]
[391825385,1760890261341,-800.0,0.0003646,7]
[391825386,1760890261352,-151.0,0.0003646,120]
[391825387,1760890261362,-168.0,0.00036463,120]
[391825388,1760890261372,-1356.561752,0.00036513,2]
[391825389,1760890261382,-800.0,0.00036536,7]
[391825390,1760890261391,-168.0,0.00036563,2]
[391825391,1760890261400,-800.0,0.0003663,7]
[391825392,1760890261411,-168.0,0.00036637,2]
[391825393,1760890261421,-800.0,0.00036646,7]
[391825394,1760890261430,-800.0,0.00036687,7]
[391825395,1760890261440,-807.44166505,0.00036707,7]
[391825396,1760890261450,-194.3880357,0.00036772,15]
[391825397,1760890261460,-272.53938991,0.00036772,15]
[391825398,1760890261471,-514.84070869,0.00036772,15]
[391825399,1760890261480,-533.88981491,0.00036772,15]
[391825400,1760890261489,-553.64373807,0.00036772,15]
[391825401,1760890261500,-574.12855637,0.00036772,15]
[391825402,1760890261510,-595.37131296,0.00036772,15]
[391825403,1760890261520,-617.40005154,0.00036772,15]
[391825404,1760890261529,-304.21910614,0.00036772,15]
[391825405,1760890261539,-2585.7125657,0.00036773,2]
[391825407,1760890261613,-3350.9779912,0.00036773,2]
[391825408,1760890261623,-31359.1229532,0.00036773,2]
[391825409,1760890261632,-151.0,0.00036773,120]
[391825410,1760890261642,-151.0,0.00036773,120]
[391825411,1760890261651,-151.0,0.00036773,120]
[391825412,1760890261661,-151.502127,0.00036773,120]
[391825413,1760890261671,-223.176432,0.00036773,120]
[391825414,1760890261680,-223.176432,0.00036773,120]
[391825415,1760890261690,-223.176432,0.00036773,120]
[391825416,1760890261699,-223.176432,0.00036773,120]
[391825417,1760890261709,-151.898794,0.00036773,30]
[391825418,1760890261718,-223.176432,0.00036773,120]
[391825419,1760890261728,-223.176432,0.00036773,120]
[391825420,1760890261738,-223.176432,0.00036773,120]
[391825421,1760890261749,-223.176432,0.00036773,120]
[391825422,1760890261759,-151.0,0.00036773,120]
[391825423,1760890261769,-151.0,0.00036773,15]
[391825424,1760890261779,-151.0,0.00036773,15]
[391825425,1760890261789,-151.0,0.00036773,120]
[391825426,1760890261799,-151.0,0.00036773,120]
[391825427,1760890261808,-248.869096,0.00036773,120]
[391825428,1760890261818,-151.0,0.00036773,120]
[391825429,1760890261829,-151.0,0.00036773,120]
[391825430,1760890261838,-151.0,0.00036773,120]
[391825431,1760890261848,-151.0,0.00036773,120]
[391825432,1760890261857,-151.0,0.00036773,120]
[391825433,1760890261867,-151.0,0.00036773,120]
[391825434,1760890261876,-151.0,0.00036773,2]
[391825435,1760890261885,-151.0,0.00036773,2]
[391825436,1760890261894,-151.0,0.00036773,120]
[391825437,1760890261903,-151.0,0.00036773,120]
[391825438,1760890261912,-151.0,0.00036773,120]
[391825439,1760890261922,-177.989297,0.00036773,120]
[391825440,1760890261931,-151.0,0.00036773,120]
[391825441,1760890261941,-346.54191656,0.00036794,2]
[391825442,1760890261950,-1132.56765264,0.00036811,3]
[391825443,1760890261959,-168.0,0.00036825,2]
[391825444,1760890261969,-168.0,0.00036866,2]
[391825445,1760890261978,-346.54191652,0.00036869,2]
[391825446,1760890261987,-151.0,0.00036874,120]
[391825447,1760890261997,-151.0,0.00036874,120]
[391825448,1760890262006,-417.22,0.00036874,3]
[391825449,1760890262015,-151.0,0.00036874,2]
[391825450,1760890262024,-208.61,0.00036874,3]
[391825451,1760890262034,-625.85,0.00036874,3]
[391825452,1760890262043,-151.0,0.00036874,120]
[391825453,1760890262052,-151.0,0.00036874,120]
[391825454,1760890262061,-28966.6552602,0.00036874,3]
[391825455,1760890262071,-2890.7429805,0.00036874,3]
[391825456,1760890262080,-28966.6552602,0.00036884,3]
[391825457,1760890262088,-2890.7429805,0.00036884,3]
[391825458,1760890262097,-152.442408,0.00036884,2]
[391825459,1760890262107,-151.0,0.00036884,120]
[391825460,1760890262116,-152.442408,0.00036884,2]
[391825461,1760890262125,-152.442408,0.00036884,2]
[391825462,1760890262135,-152.442408,0.00036884,2]
[391825463,1760890262144,-151.0,0.00036884,120]
[391825464,1760890262154,-151.0,0.00036884,120]
[391825465,1760890262163,-163.251414,0.00036884,120]
[391825466,1760890262172,-223.176432,0.00036884,120]
[391825467,1760890262182,-223.176432,0.00036884,120]
[391825468,1760890262191,-223.176432,0.00036884,120]
[391825469,1760890262200,-223.176432,0.00036884,120]
[391825470,1760890262210,-151.0,0.00036884,15]
[391825471,1760890262220,-151.0,0.00036884,120]
[391825472,1760890262230,-151.824994,0.00036884,120]
[391825473,1760890262239,-151.0,0.00036884,120]
[391825474,1760890262249,-299.401628,0.00036884,2]
[391825475,1760890262258,-151.0,0.00036884,120]
[391825476,1760890262268,-213.210072,0.00036884,120]
[391825477,1760890262281,-1999.0,0.00036893,120]
[391825478,1760890262291,-151.0,0.00036894,120]
[391825479,1760890262301,-151.0,0.00036894,7]
[391825480,1760890262311,-151.0,0.00036894,120]
[391825481,1760890262320,-151.0,0.00036894,120]
[391825482,1760890262330,-151.0,0.00036894,120]
[391825483,1760890262339,-151.0,0.00036894,120]
[391825484,1760890262352,-151.0,0.00036894,120]
[391825485,1760890262361,-151.0,0.00036894,120]
[391825486,1760890262371,-151.0,0.00036894,120]
[391825487,1760890262380,-151.0,0.00036894,120]
[391825488,1760890262390,-151.0,0.00036894,120]
[391825489,1760890262401,-283.348857,0.00036894,120]
[391825490,1760890262411,-244.565631,0.00036894,120]
[391825491,1760890262421,-152.442408,0.00036894,2]
[391825492,1760890262430,-152.442408,0.00036894,2]
[391825493,1760890262440,-152.442408,0.00036894,2]
[391825494,1760890262449,-152.442408,0.00036894,2]
[391825495,1760890262458,-151.0,0.00036894,120]
[391825496,1760890262468,-151.0,0.00036894,120]
[391825497,1760890262478,-223.176432,0.00036894,120]
[391825498,1760890262488,-223.176432,0.00036894,120]
[391825499,1760890262498,-223.176432,0.00036894,120]
[391825500,1760890262507,-223.176432,0.00036894,120]
[391825501,1760890262516,-205.421728,0.00036894,15]
[391825502,1760890262526,-151.0,0.00036894,120]
[391825503,1760890262535,-256.879308,0.00036894,120]
[391825504,1760890262545,-151.0,0.00036894,120]
[391825505,1760890262556,-95488.86974161,0.000369,17]
[391825506,1760890262565,-375.0,0.00036902,120]
[391825507,1760890262575,-346.54191652,0.00036944,2]
[391825508,1760890262584,-168.0,0.00036973,7]
[391825509,1760890262594,-6868.4205267,0.0003699,2]
[391825510,1760890262604,-346.54191652,0.00037019,2]
[391825511,1760890262614,-168.0,0.00037044,2]
[391825512,1760890262626,-1686.77660576,0.00037064,2]
[391825513,1760890262636,-157.516098,0.0003708,60]
[391825514,1760890262646,-346.54191652,0.00037094,2]
[391825515,1760890262656,-31829.61,0.000371,17]
[391825516,1760890262666,-28966.6552602,0.00037164,3]
[391825517,1760890262675,-2890.7429805,0.00037164,3]
[391825518,1760890262686,-507.96410382,0.00037173,5]
[391825519,1760890262696,-500.0,0.00037173,2]
[391825520,1760890262705,-549.23082452,0.00037173,2]
[391825521,1760890262716,-284.79689391,0.00037174,3]
[391825522,1760890262726,-152.442408,0.00037174,2]
[391825523,1760890262738,-152.442408,0.00037174,2]
[391825524,1760890262747,-152.442408,0.00037174,2]
[391825525,1760890262757,-152.442408,0.00037174,2]
[391825526,1760890262766,-151.0,0.00037174,120]
[391825527,1760890262776,-151.0,0.00037174,120]
[391825528,1760890262786,-1000.0,0.00037174,2]
[391825529,1760890262796,-1000.0,0.00037174,2]
[391825530,1760890262807,-1000.0,0.00037174,2]
[391825531,1760890262817,-1000.0,0.00037174,2]
[391825532,1760890262826,-1000.0,0.00037174,2]
[391825533,1760890262835,-1000.0,0.00037174,2]
[391825534,1760890262846,-1000.0,0.00037174,2]
[391825535,1760890262856,-1000.0,0.00037174,2]
[391825537,1760890262927,-1000.0,0.00037174,2]
[391825538,1760890262937,-1000.0,0.00037174,2]
[391825539,1760890262948,-1000.0,0.00037174,2]
[391825540,1760890262958,-1000.0,0.00037174,2]
[391825541,1760890262968,-1000.0,0.00037174,2]
[391825542,1760890262978,-1000.0,0.00037174,2]
[391825543,1760890262988,-1000.0,0.00037174,2]
[391825544,1760890262999,-1000.0,0.00037174,2]
[391825545,1760890263008,-223.176432,0.00037174,120]
[391825546,1760890263018,-223.176432,0.00037174,120]
[391825547,1760890263027,-223.176432,0.00037174,120]
[391825548,1760890263037,-223.17643153,0.00037174,120]
[391825549,1760890263046,-151.0,0.00037174,120]
[391825550,1760890263056,-173799.931561,0.00037184,3]
[391825551,1760890263065,-23125.943844,0.00037184,3]
[391825552,1760890263074,-151.0,0.00037184,30]
[391825553,1760890263083,-153.108215,0.00037184,30]
[391825554,1760890263093,-151.0,0.00037184,120]
[391825555,1760890263102,-151.0,0.00037184,120]
[391825556,1760890263112,-190.67157,0.00037184,120]
[391825557,1760890263121,-151.0,0.00037184,7]
[391825558,1760890263131,-151.0,0.00037184,7]
[391825559,1760890263140,-151.0,0.00037184,120]
[391825560,1760890263149,-151.0,0.00037184,120]
[391825561,1760890263162,-151.0,0.00037184,120]
[391825562,1760890263171,-168.29224,0.00037184,120]
[391825563,1760890263180,-151.0,0.00037184,120]
[391825564,1760890263191,-151.0,0.00037184,120]
[391825565,1760890263201,-151.0,0.00037184,120]
[391825566,1760890263210,-168.912535,0.00037184,120]
[391825567,1760890263220,-151.0,0.00037184,120]
[391825568,1760890263231,-151.0,0.00037184,120]
[391825569,1760890263241,-151.0,0.00037184,120]
[391825570,1760890263250,-151.0,0.00037184,120]
[391825571,1760890263259,-151.0,0.00037184,120]
[391825572,1760890263268,-151.0,0.00037184,120]
[391825573,1760890263281,-152.442408,0.00037184,2]
[391825574,1760890263291,-152.442408,0.00037184,2]
[391825575,1760890263300,-152.442408,0.00037184,2]
[391825576,1760890263311,-152.442408,0.00037184,2]
[391825577,1760890263320,-152.442408,0.00037184,2]
[391825578,1760890263330,-152.442408,0.00037184,2]
[391825579,1760890263340,-152.442408,0.00037184,2]
[391825580,1760890263351,-152.44241038,0.00037184,2]
[391825581,1760890263361,-1000.0,0.00037193,2]
[391825582,1760890263371,-1114.89442915,0.00037193,2]
[391825583,1760890263381,-370000.0,0.00037194,2]
[391825584,1760890263391,-164.40635285,0.00037194,120]
[391825585,1760890263401,-151.0,0.00037194,7]
[391825586,1760890263411,-166.720364,0.00037194,120]
[391825587,1760890263421,-262.805712,0.00037194,120]
[391825588,1760890263430,-151.0,0.00037194,120]
[391825589,1760890263439,-151.0,0.00037194,120]
[391825590,1760890263449,-151.0,0.00037194,120]
[391825591,1760890263458,-402.86590842,0.00037207,3]
[391825592,1760890263468,-168.0,0.0003724,2]
[391825593,1760890263477,-375.0,0.00037279,7]
[391825594,1760890263486,-168.96195573,0.00037327,2]
[391825595,1760890263496,-168.0,0.00037391,2]
[391825596,1760890263505,-720.0,0.00037461,30]
[391825597,1760890263514,-151.0,0.00037504,120]
[391825598,1760890263524,-151.0,0.00037504,120]
[391825599,1760890263535,-151.0,0.00037504,120]
[391825600,1760890263544,-200.0,0.00037507,120]
[391825601,1760890263554,-501.0226827,0.00037721,2]
[391825602,1760890263563,-2890.7429805,0.00037752,3]
[391825603,1760890263572,-168.0,0.00037758,2]
[391825604,1760890263582,-198.68,0.00037772,2]
[391825605,1760890263591,-151.840693,0.00037772,120]
[391825606,1760890263600,-151.0,0.00037772,120]
[391825607,1760890263610,-151.0,0.00037772,120]
[391825608,1760890263621,-151.0,0.00037772,120]
[391825609,1760890263630,-157.516098,0.00037792,20]
[391825610,1760890263640,-157.723438,0.00037792,20]
[391825611,1760890263649,-600.0,0.000378,7]
[391825612,1760890263659,-177.039331,0.00037815,120]
[391825613,1760890263668,-157.516098,0.00037898,15]
[391825614,1760890263677,-651.35,0.000379,2]
[391825615,1760890263687,-1999.0,0.00037989,120]
[391825616,1760890263696,-10007.530622,0.00038,60]
[391825617,1760890263705,-8672.2289415,0.0003809,3]
[391825618,1760890263715,-199.0,0.0003814,48]
[391825619,1760890263724,-1686.77660575,0.00038182,2]
[391825620,1760890263733,-330.0,0.00038191,14]
[391825621,1760890263743,-163.0,0.00038191,14]
[391825622,1760890263752,-330.0,0.00038191,14]
[391825623,1760890263761,-163.0,0.00038191,14]
[391825624,1760890263771,-330.0,0.00038191,14]
[391825625,1760890263781,-330.0,0.00038191,14]
[391825626,1760890263791,-330.0,0.00038191,14]
[391825627,1760890263801,-330.0,0.00038191,14]
[391825628,1760890263811,-330.0,0.00038191,14]
[391825629,1760890263820,-330.0,0.00038191,14]
[391825630,1760890263830,-330.0,0.00038191,14]
[391825631,1760890263840,-330.0,0.00038191,14]
[391825632,1760890263849,-330.0,0.00038191,14]
[391825633,1760890263858,-330.0,0.00038191,14]
[391825634,1760890263867,-330.0,0.00038191,14]
[391825635,1760890263877,-330.0,0.00038191,14]
[391825636,1760890263886,-330.0,0.00038191,14]
[391825637,1760890263898,-330.0,0.00038191,14]
[391825638,1760890263908,-330.0,0.00038191,14]
[391825639,1760890263918,-330.0,0.00038191,14]
[391825640,1760890263928,-330.0,0.00038191,14]
[391825641,1760890263938,-330.0,0.00038191,14]
[391825642,1760890263949,-330.0,0.00038191,14]
[391825643,1760890263959,-330.0,0.00038191,14]
[391825644,1760890263971,-330.0,0.00038191,14]
[391825645,1760890263980,-330.0,0.00038191,14]
[391825646,1760890263990,-330.0,0.00038191,14]
[391825647,1760890263999,-330.0,0.00038191,14]
[391825648,1760890264009,-284.07106432,0.00038191,14]
[391825649,1760890264018,-172.17977529,0.00038191,14]
[391825650,1760890264027,-2734.73,0.000382,14]
[391825651,1760890264037,-834.44,0.00038244,3]
[391825652,1760890264046,-417.22,0.00038244,3]
[391825653,1760890264056,-205.08,0.00038256,30]
[391825654,1760890264066,-9064.12784445,0.00038256,2]
[391825655,1760890264077,-168.0,0.00038285,7]
[391825656,1760890264145,-14453.7149025,0.00038346,3]
[391825657,1760890264155,-402.86590842,0.00038355,120]
[391825658,1760890264164,-1888.0,0.00038355,30]
[391825659,1760890264174,-448.6714144,0.00038355,30]
[391825660,1760890264184,-1442.65523299,0.00038356,120]
[391825661,1760890264194,-500.0,0.00038356,30]
[391825662,1760890264204,-290.90228981,0.00038356,30]
[391825663,1760890264214,-500.0,0.00038356,30]
[391825664,1760890264225,-500.0,0.00038356,30]
[391825665,1760890264235,-500.0,0.00038356,30]
[391825666,1760890264244,-500.0,0.00038356,30]
[391825667,1760890264254,-500.0,0.00038356,30]
[391825668,1760890264264,-500.0,0.00038356,30]
[391825669,1760890264279,-500.0,0.00038356,30]
[391825670,1760890264289,-500.0,0.00038356,30]
[391825671,1760890264299,-500.0,0.00038356,30]
[391825672,1760890264308,-500.0,0.00038356,30]
[391825673,1760890264318,-500.0,0.00038356,30]
[391825674,1760890264328,-500.0,0.00038356,30]
[391825675,1760890264337,-202.58169379,0.00038356,30]
[391825676,1760890264350,-500.0,0.00038356,30]
[391825677,1760890264359,-500.0,0.00038356,30]
[391825678,1760890264369,-500.0,0.00038356,30]
[391825679,1760890264378,-500.0,0.00038356,30]
[391825680,1760890264388,-500.0,0.00038356,30]
[391825681,1760890264398,-500.0,0.00038356,30]
[391825682,1760890264407,-500.0,0.00038356,30]
[391825683,1760890264417,-500.0,0.00038356,30]
[391825684,1760890264426,-537.8276593,0.00038356,30]
[391825685,1760890264436,-500.0,0.00038356,30]
[391825686,1760890264445,-500.0,0.00038356,30]
[391825687,1760890264455,-500.0,0.00038356,30]
[391825688,1760890264464,-500.0,0.00038356,30]
[391825689,1760890264474,-533.69637246,0.00038356,30]
[391825690,1760890264483,-150.0,0.00038356,30]
[391825691,1760890264493,-500.0,0.00038356,2]
[391825692,1760890264503,-500.0,0.00038356,2]
[391825693,1760890264513,-227.33,0.00038356,2]
[391825694,1760890264522,-832.85,0.00038356,30]
[391825695,1760890264533,-832.85,0.00038356,30]
[391825696,1760890264542,-832.85,0.00038356,30]
[391825697,1760890264552,-832.85,0.00038356,30]
[391825698,1760890264561,-832.85,0.00038356,30]
[391825699,1760890264570,-832.85,0.00038356,30]
[391825700,1760890264580,-832.85,0.00038356,30]
[391825701,1760890264589,-832.85,0.00038356,30]
[391825702,1760890264599,-832.85,0.00038356,30]
[391825703,1760890264608,-832.85,0.00038356,30]
[391825704,1760890264617,-832.85,0.00038356,30]
[391825705,1760890264627,-832.85,0.00038356,30]
[391825706,1760890264636,-832.85,0.00038356,30]
[391825707,1760890264646,-832.85,0.00038356,30]
[391825708,1760890264655,-832.85,0.00038356,30]
[391825709,1760890264664,-832.85,0.00038356,30]
[391825710,1760890264674,-832.85,0.00038356,30]
[391825711,1760890264686,-832.85,0.00038356,30]
[391825712,1760890264697,-832.85,0.00038356,30]
[391825713,1760890264707,-832.85,0.00038356,30]
[391825714,1760890264716,-832.85,0.00038356,30]
[391825715,1760890264726,-832.85,0.00038356,30]
[391825716,1760890264735,-832.85,0.00038356,30]
[391825717,1760890264746,-832.97468677,0.00038356,30]
[391825718,1760890264757,-500.0,0.00038356,2]
[391825719,1760890264767,-500.0,0.00038356,30]
[391825720,1760890264776,-500.0,0.00038356,30]
[391825721,1760890264786,-500.0,0.00038356,30]
[391825722,1760890264795,-529.08442563,0.00038356,30]
[391825723,1760890264806,-500.0,0.00038356,30]
[391825724,1760890264816,-500.0,0.00038356,30]
[391825725,1760890264829,-500.0,0.00038356,30]
[391825726,1760890264840,-500.0,0.00038356,30]
[391825727,1760890264850,-500.0,0.00038356,30]
[391825728,1760890264864,-500.0,0.00038356,30]
[391825729,1760890264874,-500.0,0.00038356,30]
[391825730,1760890264883,-500.0,0.00038356,30]
[391825731,1760890264893,-500.0,0.00038356,30]
[391825732,1760890264904,-479.02364815,0.00038356,30]
[391825733,1760890264915,-500.0,0.00038356,30]
[391825734,1760890264925,-500.0,0.00038356,30]
[391825735,1760890264935,-500.0,0.00038356,30]
[391825736,1760890264944,-194.13823177,0.00038356,30]
[391825737,1760890264954,-10753.53,0.00038356,30]
[391825738,1760890264963,-10753.53,0.00038356,30]
[391825739,1760890264974,-10753.53,0.00038356,30]
[391825740,1760890264984,-10753.53,0.00038356,30]
[391825741,1760890264995,-10753.53,0.00038356,30]
[391825742,1760890265005,-10753.53,0.00038356,30]
[391825743,1760890265015,-10753.53,0.00038356,30]
[391825744,1760890265024,-10753.53,0.00038356,30]
[391825745,1760890265034,-10753.53,0.00038356,30]
[391825746,1760890265043,-10753.53,0.00038356,30]
[391825747,1760890265052,-10753.53,0.00038356,30]
[391825748,1760890265062,-10753.53,0.00038356,30]
[391825749,1760890265071,-10753.53,0.00038356,30]
[391825750,1760890265080,-10753.53,0.00038356,30]
[391825751,1760890265090,-10753.53,0.00038356,30]
[391825752,1760890265099,-10753.53,0.00038356,30]
[391825753,1760890265108,-10753.53,0.00038356,30]
[391825754,1760890265116,-10753.53,0.00038356,30]
[391825755,1760890265125,-10753.53,0.00038356,30]
[391825756,1760890265134,-10753.53,0.00038356,30]
[391825757,1760890265143,-10753.53,0.00038356,30]
[391825758,1760890265151,-10753.53,0.00038356,30]
[391825759,1760890265161,-10753.53,0.00038356,30]
[391825760,1760890265169,-10753.71,0.00038356,30]
[391825761,1760890265178,-8651.37,0.00038356,3]
[391825762,1760890265187,-8651.37,0.00038356,3]
[391825763,1760890265196,-8651.37,0.00038356,3]
[391825764,1760890265205,-8651.37,0.00038356,3]
[391825765,1760890265273,-8651.37,0.00038356,3]
[391825766,1760890265285,-8651.37,0.00038356,3]
[391825767,1760890265293,-8651.37,0.00038356,3]
[391825768,1760890265301,-8651.37,0.00038356,3]
[391825769,1760890265309,-8651.37,0.00038356,3]
[391825770,1760890265316,-8651.37,0.00038356,3]